bitfinex/quotes_ETHUSD_20250411
["timestamp","ask_amount","ask_price","bid_price","bid_amount"]
[1744330858638,7.12721,1520.4,1520.3,0.2280542]
[1744330858834,7.12721,1520.4,1520.0,0.50044689]
[1744330858835,6.57799,1520.3,1520.0,0.50044689]
[1744330859037,13.15598,1520.3,1520.1,0.22813141]
[1744330859288,7.32836,1520.4,1520.1,0.22813141]
[1744330859574,13.156,1520.3,1520.1,0.22813141]
[1744330859772,13.90565,1520.4,1520.1,0.22813141]
[1744330859945,0.751,1520.4,1520.2,3.0]
[1744330860567,0.751,1520.4,1520.3,0.22813141]
[1744330860776,7.892183,1520.5,1520.3,0.22813141]
[1744330861300,15.079183,1520.5,1520.3,0.22813141]
[1744330861594,7.12679,1520.5,1520.3,0.22813141]
[1744330862294,0.55,1520.5,1520.3,0.22813141]
[1744330862593,7.1271,1520.5,1520.3,0.22813141]
[1744330862893,27.25102,1520.6,1520.3,0.22813141]
[1744330863110,6.57697,1520.5,1520.3,0.22813141]
[1744330863818,23.399502,1520.6,1520.3,0.22813141]
[1744330863980,6.16,1520.6,1520.4,6.57702]
[1744330864175,0.751,1520.8,1520.5,6.81085553]
[1744330864378,7.938,1521.0,1520.7,6.57573]
[1744330864577,7.938,1521.0,1520.7,13.15145]
[1744330864789,7.187,1521.0,1520.8,0.23407553]
[1744330865520,7.187,1521.0,1520.9,6.57505]
[1744330865826,0.751,1521.2,1521.0,6.57448]
[1744330865984,7.187,1521.2,1521.0,13.14894]
[1744330866184,0.751,1521.4,1521.1,6.80516747]
[1744330866410,63.548,1521.5,1521.2,13.14725]
[1744330866624,63.548,1521.5,1521.3,6.80262122]
[1744330866918,6.16,1521.6,1521.3,13.37572122]
[1744330867116,6.16,1521.6,1521.4,6.57264]
[1744330867117,13.347,1521.6,1521.4,6.57264]
[1744330867321,13.40986042,1522.1,1521.8,6.57092]
[1744330867504,13.40986042,1522.1,1522.0,6.5703]
[1744330867505,12.65886042,1522.1,1522.0,6.5703]
[1744330867710,12.65886042,1522.1,1522.0,6.79681268]
[1744330868328,12.65886042,1522.1,1522.0,14.51276044]
[1744330868529,15.58013591,1522.3,1522.2,7.37033]
[1744330868713,19.32988669,1522.5,1522.3,9.569]
[1744330869040,24.50013085,1522.6,1522.5,9.56814]
[1744330869341,24.50013085,1522.6,1522.5,14.99172013]
[1744330869536,12.65334863,1523.1,1522.8,9.56685]
[1744330869906,12.65334863,1523.1,1522.9,10.36699]
[1744330870108,12.65334863,1523.1,1523.0,9.76959353]
[1744330870435,8.65344863,1523.1,1523.0,9.76959353]
[1744330870651,8.65344863,1523.1,1523.0,3.20361353]
[1744330871035,8.65344863,1523.1,1523.0,3.6879154]
[1744330871355,8.65344863,1523.1,1523.0,11.2247736]
[1744330871721,8.65344863,1523.1,1523.0,3.6879154]
[1744330873168,22.13808216,1523.3,1523.0,3.6879154]
[1744330873169,6.56361,1523.6,1523.2,3.0]
[1744330873670,6.56361,1523.6,1523.3,0.20361353]
[1744330874254,6.56426,1523.4,1523.3,0.20361353]
[1744330874464,6.56507,1523.3,1523.0,0.48430187]
[1744330874664,6.56529,1523.2,1523.1,0.19414353]
[1744330874854,6.56589,1523.1,1522.6,6.0184666]
[1744330875054,0.55,1523.2,1523.1,0.19414353]
[1744330875369,6.56609,1523.0,1522.8,0.4808424]
[1744330875669,7.879255,1523.0,1522.9,0.17411673]
[1744330875868,6.56658,1522.9,1522.6,0.7985]
[1744330876030,6.56686,1522.8,1522.7,0.17411673]
[1744330876369,13.13401,1522.8,1522.4,3.0]
[1744330876554,13.68401,1522.8,1522.7,0.17411673]
[1744330876865,6.56728,1522.7,1522.3,4.2810154]
[1744330877369,7.880271,1522.8,1522.3,1.2810154]
[1744330877370,13.13592,1522.6,1522.3,1.2810154]
[1744330877542,6.56787,1522.6,1522.3,1.2810154]
[1744330877743,6.56787,1522.6,1522.3,4.2810154]
[1744330878069,6.56787,1522.6,1522.3,3.4825154]
[1744330879175,6.56787,1522.6,1522.3,0.4825154]
[1744330879361,6.56787,1522.6,1522.2,3.0]
[1744330879785,6.56814,1522.5,1522.0,6.0184666]
[1744330880086,6.56876,1522.4,1522.0,12.5887466]
[1744330880267,6.56814,1522.5,1522.0,12.5887466]
[1744330880268,0.55,1522.5,1522.0,0.7985]
[1744330880469,13.13858,1522.3,1522.0,0.7985]
[1744330880876,6.5695,1522.2,1521.8,7.3696]
[1744330881077,6.5695,1522.2,1521.8,9.28567366]
[1744330881288,6.5695,1522.2,1521.9,3.0]
[1744330881490,6.5695,1522.2,1521.9,3.48629435]
[1744330881692,6.56926,1522.3,1521.9,3.48629435]
[1744330881693,6.5703,1522.0,1521.9,3.48629435]
[1744330881894,6.5703,1522.0,1521.9,0.48629435]
[1744330882188,6.5703,1522.0,1521.7,5.2199666]
[1744330882189,6.57132,1521.8,1521.5,0.7985]
[1744330882344,13.14275,1521.8,1521.5,0.7985]
[1744330882546,6.57227,1521.6,1521.4,1.1518109]
[1744330882764,6.57227,1521.6,1521.2,3.7985]
[1744330882983,6.57227,1521.6,1521.2,1.28036365]
[1744330883399,7.336,1521.8,1521.5,3.0]
[1744330883702,13.90737,1521.8,1521.5,3.0]
[1744330884202,6.57073,1521.9,1521.5,3.0]
[1744330884489,7.35737,1522.0,1521.5,7.529357]
[1744330884693,6.5712,1521.8,1521.5,0.957267]
[1744330884898,6.57165,1521.7,1521.4,3.0]
[1744330885493,6.57002,1522.1,1521.7,3.0]
[1744330885700,6.57002,1522.1,1521.7,10.37667]
[1744330886281,6.56945,1522.2,1521.7,10.37655]
[1744330886466,6.57024,1522.1,1521.8,4.037655]
[1744330886673,6.57031,1522.0,1521.7,3.8051]
[1744330887201,6.57024,1522.1,1521.7,10.37668]
[1744330887403,13.14037,1522.1,1521.7,3.8051]
[1744330888004,6.56949,1522.2,1521.7,0.8051]
[1744330888161,6.56949,1522.2,1521.5,12.63239]
[1744330888162,8.544949,1522.1,1521.5,6.06]
[1744330888367,6.57181,1521.7,1521.6,3.0]
[1744330888580,6.57181,1521.7,1521.6,0.17434035]
[1744330888988,6.57246,1521.5,1521.4,0.8051]
[1744330889168,6.57204,1521.6,1521.2,7.87746947]
[1744330889369,13.14346,1521.7,1521.3,3.78774695]
[1744330889608,7.33197,1521.9,1521.3,0.78774695]
[1744330889609,6.57221,1521.6,1521.3,0.78774695]
[1744330890701,6.57162,1521.7,1521.3,7.36100695]
[1744330891003,6.57119,1521.8,1521.5,3.0]
[1744330891209,7.33195,1521.9,1521.5,3.0]
[1744330891210,6.57075,1521.9,1521.6,0.8051]
[1744330891389,6.57032,1522.0,1521.6,9.072097]
[1744330891703,6.57095,1521.9,1521.6,2.500077]
[1744330891919,13.14191,1521.9,1521.6,0.8051]
[1744330892081,6.57095,1521.9,1521.6,0.8051]
[1744330892283,13.14191,1521.9,1521.6,0.8051]
[1744330893069,6.57121,1521.8,1521.6,0.8051]
[1744330893290,6.57078,1521.9,1521.6,0.8051]
[1744330893494,13.14175,1521.9,1521.6,1.18561]
[1744330893698,6.57124,1521.8,1521.6,1.18561]
[1744330893896,6.57078,1521.9,1521.4,0.8051]
[1744330893897,6.57233,1521.6,1521.4,0.8051]
[1744330894631,6.57174,1521.7,1521.4,0.8051]
[1744330896031,13.14089,1522.0,1521.6,3.0]
[1744330896193,13.14181,1521.9,1521.6,3.0]
[1744330896392,6.57075,1521.9,1521.6,3.0]
[1744330896633,6.57119,1521.8,1521.5,3.0]
[1744330896796,6.57119,1521.8,1521.5,4.695066]
[1744330897405,6.57075,1521.9,1521.5,11.267366]
[1744330897726,6.57075,1521.9,1521.5,4.695066]
[1744330897926,6.5713,1521.8,1521.5,4.695066]
[1744330898126,6.5713,1521.8,1521.5,3.0]
[1744330898550,6.5713,1521.8,1521.4,13.95054]
[1744330898551,6.57175,1521.7,1521.4,3.8051]
[1744330899110,6.57203,1521.6,1521.4,0.8051]
[1744330899330,6.57203,1521.6,1521.3,3.78774695]
[1744330900048,6.57175,1521.7,1521.3,16.93400695]
[1744330900607,6.57175,1521.7,1521.4,1.6934007]
[1744330901019,7.38708,1521.8,1521.4,8.2661907]
[1744330901238,13.95845,1521.8,1521.4,8.2661907]
[1744330901749,0.8159,1521.8,1521.6,3.0]
[1744330902652,0.76,1522.0,1521.5,5.51302007]
[1744330902836,6.56958,1522.2,1521.8,13.1418]
[1744330903018,6.56958,1522.2,1521.8,13.14178]
[1744330903359,6.57118,1521.8,1521.5,0.8119]
[1744330903564,0.76,1521.9,1521.3,1.59964695]
[1744330903855,13.14482,1521.6,1521.2,7.07238947]
[1744330904158,7.33249,1521.5,1521.2,0.49868947]
[1744330904313,7.33249,1521.5,1521.2,6.57375]
[1744330904514,7.33249,1521.5,1521.2,3.0]
[1744330905025,7.33249,1521.5,1521.2,9.57373]
[1744330905227,13.90522,1521.5,1521.2,3.0]
[1744330905412,13.90522,1521.5,1521.2,3.48288736]
[1744330905611,6.57298,1521.4,1521.2,0.48288736]
[1744330905818,6.57332,1521.3,1520.8,13.15079]
[1744330906022,9.4044602,1521.5,1521.0,6.57443]
[1744330906023,6.57292,1521.4,1521.0,6.57443]
[1744330906247,9.4044802,1521.5,1521.1,9.57404]
[1744330906433,0.55,1521.4,1520.7,0.8119]
[1744330906638,0.33819702,1521.4,1520.7,1.41627172]
[1744330906839,13.91247,1521.3,1521.0,3.0]
[1744330907241,20.48604,1521.3,1521.0,3.0]
[1744330908676,13.148,1521.2,1521.0,3.0]
[1744330908967,7.339,1521.3,1521.0,3.0]
[1744330909133,13.49251,1521.5,1521.1,6.57383]
[1744330909330,6.92,1521.5,1521.2,6.57371]
[1744330909531,7.33259,1521.5,1521.1,7.38573]
[1744330910746,13.90541,1521.5,1521.1,7.38573]
[1744330911175,13.90541,1521.5,1521.1,3.8119]
[1744330911176,6.57292,1521.4,1521.1,3.8119]
[1744330911350,7.3325,1521.5,1521.1,10.386]
[1744330911669,13.9052,1521.5,1521.1,11.57006474]
[1744330912076,7.3325,1521.5,1521.1,18.14405474]
[1744330912445,7.3325,1521.5,1521.2,6.57373]
[1744330913784,13.90529,1521.5,1521.1,11.57004474]
[1744330914089,13.90529,1521.5,1521.1,4.99605474]
[1744330914090,6.5729,1521.4,1521.1,4.99605474]
[1744330916293,7.3325,1521.5,1521.2,0.49960547]
[1744330916488,7.3325,1521.5,1521.3,3.0]
[1744330916653,13.90523,1521.5,1521.3,3.0]
[1744330916855,6.57289,1521.4,1521.1,4.99605474]
[1744330917189,6.57571,1520.8,1520.4,7.35545]
[1744330917497,6.57609,1520.7,1520.4,0.7784]
[1744330917648,0.8043,1520.9,1520.6,3.0]
[1744330917989,6.57566,1520.8,1520.5,3.0]
[1744330918564,7.37959,1520.9,1520.6,0.16292733]
[1744330918794,7.37959,1520.9,1520.6,1.32477124]
[1744330918954,7.37959,1520.9,1520.6,4.32477124]
[1744330919156,7.37959,1520.9,1520.6,3.65081751]
[1744330919157,6.57572,1520.8,1520.6,3.65081751]
[1744330919992,6.57591,1520.7,1520.6,3.65081751]
[1744330920201,6.57591,1520.7,1520.6,0.16292733]
[1744330920574,6.57591,1520.7,1520.5,3.0]
[1744330920777,6.57591,1520.7,1520.6,0.16292733]
[1744330920961,7.37943,1520.9,1520.6,0.64889611]
[1744330921164,6.57556,1520.8,1520.5,9.57658]
[1744330921364,6.57556,1520.8,1520.7,0.16292733]
[1744330921600,6.57556,1520.8,1520.5,5.423314]
[1744330921761,6.57556,1520.8,1520.7,0.16292733]
[1744330922264,13.15131,1520.8,1520.5,5.423314]
[1744330922459,6.57556,1520.8,1520.7,0.16292733]
[1744330922664,6.57556,1520.8,1520.5,5.423314]
[1744330922862,7.37936,1520.9,1520.7,0.16292733]
[1744330923166,13.14956,1521.0,1520.6,6.5762]
[1744330923392,13.14956,1521.0,1520.8,0.16292733]
[1744330923589,13.14956,1521.0,1520.7,0.16500599]
[1744330923793,6.57505,1520.9,1520.6,8.48201201]
[1744330924011,6.57505,1520.9,1520.8,0.16500599]
[1744330924294,13.15047,1520.9,1520.8,0.16500599]
[1744330924506,13.15047,1520.9,1520.6,1.90581201]
[1744330924708,13.15047,1520.9,1520.8,0.16500599]
[1744330924907,6.576,1520.7,1520.5,3.4819661]
[1744330925931,6.57553,1520.8,1520.5,3.4819661]
[1744330926291,7.37851,1521.1,1520.8,3.0]
[1744330926292,0.8043,1521.1,1520.8,3.0]
[1744330926496,6.57438,1521.1,1520.9,3.0]
[1744330926796,6.57422,1521.1,1520.8,3.7784]
[1744330926991,0.8043,1521.3,1520.9,6.5748]
[1744330926992,7.37767,1521.3,1520.9,6.5748]
[1744330927218,6.57347,1521.3,1521.0,3.0]
[1744330927420,0.8043,1521.4,1520.8,9.116821]
[1744330927696,6.57354,1521.3,1520.9,9.57501]
[1744330928014,13.1471,1521.3,1520.9,9.57501]
[1744330928214,6.57354,1521.3,1520.9,18.6765891]
[1744330928398,0.8043,1521.4,1520.9,5.5267291]
[1744330928598,0.8043,1521.4,1520.7,3.0]
[1744330928599,6.57418,1521.1,1520.7,3.0]
[1744330928894,6.57347,1521.3,1520.8,6.57542]
[1744330929194,13.14795,1521.2,1521.0,3.0]
[1744330929409,6.57395,1521.2,1521.0,3.0]
[1744330929608,6.57338,1521.3,1521.0,3.0]
[1744330929825,7.3772,1521.4,1521.0,4.78595588]
[1744330930032,7.3772,1521.4,1521.1,3.0]
[1744330930192,0.8043,1521.4,1520.9,0.50054876]
[1744330930392,0.8043,1521.4,1521.0,6.57438]
[1744330930620,7.37737,1521.4,1521.0,7.70224974]
[1744330930948,0.8085,1521.6,1521.0,1.12786974]
[1744330931228,6.9685,1521.8,1521.4,9.57282]
[1744330931435,6.57176,1521.7,1521.4,3.0]
[1744330932432,6.57203,1521.6,1521.4,3.0]
[1744330932614,13.1443,1521.6,1521.4,3.0]
[1744330932797,1.395145,1521.7,1521.2,3.0]
[1744330932798,7.966795,1521.7,1521.2,3.0]
[1744330932997,6.57165,1521.7,1521.2,3.0]
[1744330933197,7.37974,1521.8,1521.4,9.57266]
[1744330933423,0.8085,1521.8,1521.4,3.7783]
[1744330933630,13.538,1522.2,1521.7,6.57123]
[1744330933835,20.03075,1522.4,1522.0,6.57027]
[1744330934014,27.61845141,1522.4,1522.0,6.57027]
[1744330934218,20.83925,1522.4,1522.1,0.14609566]
[1744330934406,6.56903,1522.3,1521.9,9.57055]
[1744330934607,6.56903,1522.3,1521.9,9.57051]
[1744330934828,6.56903,1522.3,1522.0,0.14609566]
[1744330935340,20.83925,1522.4,1522.0,6.71612566]
[1744330935630,6.5692,1522.3,1522.0,0.14609566]
[1744330935852,6.56987,1522.1,1522.0,0.14609566]
[1744330936023,6.5696,1522.2,1522.0,0.14609566]
[1744330936622,6.56903,1522.3,1522.0,0.14609566]
[1744330936827,6.56947,1522.2,1522.0,0.14609566]
[1744330937350,6.56947,1522.2,1521.8,3.0]
[1744330937351,6.56987,1522.1,1521.8,3.0]
[1744330937753,7.226417,1522.2,1521.8,3.0]
[1744330937954,20.83915,1522.4,1522.0,6.57017]
[1744330938117,0.8085,1522.6,1522.0,0.7783]
[1744330938313,0.8085,1522.6,1522.3,6.56879]
[1744330938653,13.53538,1522.8,1522.4,13.13683]
[1744330938951,7.37538,1522.8,1522.4,13.13683]
[1744330939154,0.55,1522.7,1522.3,2.092122]
[1744330939344,6.56798,1522.6,1522.4,3.0]
[1744330939852,6.56798,1522.6,1522.3,0.7783]
[1744330939853,13.136,1522.6,1522.3,0.7783]
[1744330940061,6.56798,1522.6,1522.2,13.13846]
[1744330940266,13.68494,1522.7,1522.3,6.56885]
[1744330940557,7.11734,1522.7,1522.3,13.13763]
[1744330940852,6.56795,1522.6,1522.2,16.13863]
[1744330941054,7.3756,1522.8,1522.2,1.991693]
[1744330941254,13.94285,1522.8,1522.4,6.56854]
[1744330941461,7.3756,1522.8,1522.4,13.13691]
[1744330941755,6.5671,1522.8,1522.5,7.34639]
[1744330942086,20.83454,1523.0,1522.6,6.56753]
[1744330942656,20.83454,1523.0,1522.6,7.05606518]
[1744330942856,20.10076,1523.0,1522.6,7.05606518]
[1744330943057,20.10076,1523.0,1522.7,6.70546725]
[1744330943058,6.16,1523.0,1522.7,6.70546725]
[1744330943371,12.72599,1523.0,1522.7,6.70546725]
[1744330943843,12.72599,1523.0,1522.7,0.13833725]
[1744330944044,12.72599,1523.0,1522.6,8.4962787]
[1744330944244,12.72599,1523.0,1522.7,0.13833725]
[1744330944767,12.72599,1523.0,1522.8,0.13833725]
[1744330944940,6.56599,1523.0,1522.8,0.13833725]
[1744330945136,6.56599,1523.0,1522.6,15.0638287]
[1744330945341,6.56599,1523.0,1522.9,0.13833725]
[1744330945567,6.56599,1523.0,1522.7,6.56723]
[1744330945767,6.56599,1523.0,1522.9,0.13833725]
[1744330945976,6.56599,1523.0,1522.7,6.56723]
[1744330946137,6.56599,1523.0,1522.9,0.13833725]
[1744330946343,6.56599,1523.0,1522.7,6.56723]
[1744330946680,6.56563,1523.1,1522.7,14.64072087]
[1744330946881,7.37214,1523.9,1523.1,3.0]
[1744330947183,6.16,1524.1,1523.1,3.0]
[1744330947184,7.37147,1524.1,1523.7,6.56274]
[1744330947364,6.56147,1524.1,1523.7,7.0603218]
[1744330947555,6.56147,1524.1,1523.8,0.13833725]
[1744330947952,7.37053,1524.3,1523.8,0.85820316]
[1744330948279,0.65,1524.4,1524.3,9.56038]
[1744330948453,0.65,1524.4,1524.3,3.0]
[1744330948656,0.65,1524.4,1523.9,3.8171]
[1744330948657,6.56085,1524.2,1523.9,3.8171]
[1744330948871,6.56085,1524.2,1524.0,0.13833725]
[1744330949179,6.56085,1524.2,1523.9,3.8171]
[1744330949344,14.434063,1524.2,1523.9,3.8171]
[1744330949844,6.56041,1524.3,1523.9,3.8171]
[1744330950180,6.56183,1524.0,1523.7,3.4975818]
[1744330950674,13.12285,1524.1,1523.7,10.0605118]
[1744330950977,1.46,1524.4,1524.0,3.0]
[1744330951180,8.02002,1524.4,1524.0,3.0]
[1744330951379,0.65,1524.4,1524.2,6.5608]
[1744330951539,0.65,1524.4,1524.2,7.29859]
[1744330951745,0.65,1524.4,1524.2,0.73779]
[1744330952182,7.21019,1524.4,1524.1,3.8171]
[1744330952339,7.20998,1524.4,1524.0,3.0]
[1744330952679,6.56059,1524.3,1524.0,3.0]
[1744330952836,6.56107,1524.2,1523.9,0.8171]
[1744330953041,6.56042,1524.3,1524.0,3.0]
[1744330954397,7.21003,1524.4,1524.0,4.037903]
[1744330954687,13.77025,1524.4,1524.0,10.599433]
[1744330954852,6.56044,1524.3,1524.0,4.037903]
[1744330955477,0.65,1524.4,1524.1,6.56123]
[1744330955787,7.21016,1524.4,1524.0,7.599253]
[1744330955958,6.56058,1524.3,1524.0,1.037903]
[1744330956153,7.20997,1524.4,1524.0,7.599533]
[1744330956358,6.56039,1524.3,1524.0,1.037903]
[1744330956881,7.20997,1524.4,1524.0,7.599363]
[1744330957097,7.20997,1524.4,1524.1,0.7599363]
[1744330957447,7.20997,1524.4,1524.1,3.7599363]
[1744330957984,7.20997,1524.4,1524.1,4.25653645]
[1744330958145,6.5604,1524.3,1524.1,4.25653645]
[1744330958889,7.20997,1524.4,1524.1,4.25653645]
[1744330959095,7.20997,1524.4,1524.1,10.81769645]
[1744330960402,7.20997,1524.4,1524.1,4.25653645]
[1744330960613,13.77018,1524.4,1524.1,4.25653645]
[1744330960919,13.77019,1524.4,1524.1,4.25653645]
[1744330961634,6.56081,1524.2,1523.9,0.8171]
[1744330961813,6.56141,1524.1,1523.9,0.8171]
[1744330962017,13.12305,1524.1,1523.9,0.8171]
[1744330962215,6.56141,1524.1,1523.9,0.8171]
[1744330962518,7.20996,1524.4,1524.1,6.56113]
[1744330962720,13.77014,1524.4,1524.1,3.0]
[1744330963426,6.56044,1524.3,1524.1,3.0]
[1744330964518,6.56044,1524.3,1524.1,3.49630219]
[1744330965600,13.12461,1523.9,1523.7,1.3239818]
[1744330966137,6.56254,1523.8,1523.7,0.4975818]
[1744330966431,13.95006,1524.1,1523.8,3.0]
[1744330966432,7.38853,1524.1,1523.8,3.0]
[1744330966591,6.56308,1523.7,1523.5,5.51175909]
[1744330966917,6.56308,1523.7,1523.5,0.8264]
[1744330967134,6.5626,1523.8,1523.5,0.8264]
[1744330967421,6.56312,1523.7,1523.5,0.50313722]
[1744330967731,13.12764,1523.6,1523.3,0.8264]
[1744330967949,13.12764,1523.6,1523.3,4.565545]
[1744330968634,6.56382,1523.6,1523.3,1.565545]
[1744330968844,6.56382,1523.6,1523.3,8.130225]
[1744330969135,6.56382,1523.6,1523.4,3.0]
[1744330970604,13.12747,1523.6,1523.3,4.565545]
[1744330970801,6.56383,1523.5,1523.3,3.0]
[1744330971106,6.56383,1523.5,1523.2,3.0]
[1744330971310,13.12791,1523.5,1523.2,3.0]
[1744330972933,13.12886,1523.4,1523.2,3.0]
[1744330973146,13.12886,1523.4,1523.1,0.48689543]
[1744330973147,6.56512,1523.2,1523.1,0.48689543]
[1744330973313,13.13047,1523.2,1522.9,0.7563]
[1744330973849,13.13047,1523.2,1522.9,3.7563]
[1744330974048,6.56578,1523.1,1522.8,3.0]
[1744330974354,13.13175,1523.1,1522.8,3.0]
[1744330974516,13.13175,1523.1,1522.8,3.50140413]
[1744330974718,13.13175,1523.1,1522.5,4.68535909]
[1744330974719,6.56728,1522.7,1522.5,4.68535909]
[1744330974925,6.56642,1522.9,1522.4,7.32461]
[1744330975135,6.56694,1522.8,1522.5,3.0]
[1744330975447,6.56694,1522.8,1522.5,4.689295]
[1744330975648,13.13402,1522.8,1522.5,4.689295]
[1744330975852,6.56694,1522.8,1522.5,5.17623129]
[1744330976055,13.13405,1522.8,1522.5,5.17623129]
[1744330976409,6.56647,1522.9,1522.5,11.74412129]
[1744330976642,13.13314,1522.9,1522.5,16.42948038]
[1744330977028,7.35497,1523.0,1522.7,3.0]
[1744330977441,6.16,1523.3,1523.0,3.0]
[1744330977650,13.92397,1523.4,1523.0,9.56558]
[1744330977863,13.12975,1523.3,1523.0,3.0]
[1744330979057,13.12975,1523.3,1523.0,3.49500678]
[1744330979418,7.957185,1523.3,1522.8,3.0]
[1744330979730,6.56612,1523.0,1522.8,3.0]
[1744330980139,6.56612,1523.0,1522.7,3.0]
[1744330980443,6.56612,1523.0,1522.4,13.89924]
[1744330980444,6.56716,1522.8,1522.4,13.89924]
[1744330980636,6.56716,1522.8,1522.5,4.389924]
[1744330980841,0.7952,1523.0,1522.5,1.389924]
[1744330981042,6.56723,1522.8,1522.4,10.3308]
[1744330981353,6.56723,1522.8,1522.4,7.3308]
[1744330981556,7.36125,1523.0,1522.6,6.56737]
[1744330981851,13.13135,1523.1,1522.7,9.56713]
[1744330982056,6.5647,1523.3,1523.0,3.0]
[1744330982747,7.35951,1523.4,1523.0,17.744894]
[1744330983153,20.42608,1523.6,1523.2,6.56501]
[1744330983363,21.22132,1523.6,1523.2,6.56501]
[1744330983560,6.56383,1523.5,1523.0,11.179204]
[1744330983764,6.56383,1523.5,1523.0,4.613254]
[1744330983946,6.5653,1523.2,1522.9,4.26573166]
[1744330984118,6.56427,1523.4,1522.9,4.26573166]
[1744330984119,6.5647,1523.3,1522.9,1.26573166]
[1744330984321,6.56637,1523.0,1522.6,0.7623]
[1744330984537,0.55,1523.0,1522.4,0.7623]
[1744330984762,6.56778,1522.6,1522.2,13.90068]
[1744330984923,6.56778,1522.6,1522.2,13.90071]
[1744330985126,6.56778,1522.6,1522.3,9.56899]
[1744330985462,6.56857,1522.5,1522.2,15.40920139]
[1744330985758,13.13714,1522.5,1522.3,3.0]
[1744330986068,6.5689,1522.4,1522.2,15.40920139]
[1744330986248,13.13781,1522.4,1522.2,15.40920139]
[1744330986654,13.13781,1522.4,1522.3,3.0]
[1744330986968,0.7952,1522.3,1522.2,15.40920139]
[1744330987260,6.9552,1522.5,1522.3,3.0]
[1744330989457,13.52349,1522.5,1522.3,3.0]
[1744330989665,6.56941,1522.3,1522.0,3.0]
[1744330989862,13.13882,1522.3,1522.0,3.0]
[1744330990159,13.13748,1522.4,1522.0,10.713393]
[1744330990681,6.56945,1522.2,1521.9,4.5908944]
[1744330990968,6.56904,1522.3,1521.9,17.7321044]
[1744330991187,13.13829,1522.3,1521.9,11.1614544]
[1744330991487,6.56945,1522.2,1521.9,11.1614544]
[1744330991647,6.56945,1522.2,1521.9,4.1]
[1744330992371,6.56904,1522.3,1521.9,17.24105]
[1744330992672,6.56904,1522.3,1521.9,10.67051]
[1744330992849,13.13831,1522.3,1521.9,10.67051]
[1744330993449,6.56944,1522.2,1521.9,10.67051]
[1744330993772,6.56944,1522.2,1521.9,4.1]
[1744330994644,6.56989,1522.1,1521.9,4.1]
[1744330994971,0.55,1522.4,1521.9,1.1]
[1744330995274,6.56963,1522.2,1522.0,3.0]
[1744330995484,13.13833,1522.3,1522.0,3.0]
[1744330995974,6.56907,1522.3,1522.0,3.0]
[1744330996379,6.56949,1522.2,1522.0,3.0]
[1744330996543,6.56907,1522.3,1522.0,3.0]
[1744330996982,6.568,1522.6,1522.2,6.56913]
[1744330997142,6.568,1522.6,1522.1,0.7508]
[1744330997143,6.5669,1522.8,1522.4,6.56824]
[1744330997471,6.5669,1522.8,1522.5,6.56805]
[1744330997773,6.56794,1522.6,1522.3,3.0]
[1744330997957,13.13604,1522.6,1522.3,3.0]
[1744330998159,6.56736,1522.7,1522.3,3.0]
[1744330998359,13.13487,1522.7,1522.3,9.56868]
[1744330998583,6.56776,1522.6,1522.3,9.56868]
[1744330998791,6.56729,1522.7,1522.3,3.0]
[1744330998957,6.56729,1522.7,1522.4,6.56852]
[1744330999157,1.313422,1522.7,1522.3,3.0]
[1744330999372,13.13677,1522.5,1522.2,8.0538]
[1744330999590,6.56873,1522.4,1522.2,7.303]
[1744330999890,6.56914,1522.3,1522.0,3.0]
[1744331000054,6.56946,1522.2,1522.0,3.0]
[1744331000893,6.56951,1522.2,1521.9,1.1]
[1744331001098,13.14015,1522.1,1521.9,1.1]
[1744331001301,6.5703,1522.0,1521.9,1.1]
[1744331001672,6.56952,1522.2,1521.9,1.1]
[1744331001972,6.56997,1522.1,1521.9,1.1]
[1744331002572,6.56952,1522.2,1522.0,3.0]
[1744331004166,7.32467,1522.3,1522.0,3.0]
[1744331004564,13.13945,1522.2,1522.0,3.0]
[1744331004766,6.56987,1522.1,1522.0,3.0]
[1744331004992,6.56987,1522.1,1521.9,1.1]
[1744331005296,6.56971,1522.2,1521.9,4.55947366]
[1744331005666,6.56865,1522.4,1522.1,6.56972]
[1744331006001,6.56865,1522.4,1522.1,3.0]
[1744331006171,6.56768,1522.7,1522.3,3.0]
[1744331006172,6.56776,1522.6,1522.3,3.0]
[1744331006679,7.33755,1522.7,1522.3,11.323591]
[1744331006896,6.56785,1522.6,1522.3,4.754741]
[1744331007096,6.56837,1522.5,1522.2,3.0]
[1744331007310,6.56837,1522.5,1522.2,3.48233284]
[1744331007472,6.56779,1522.6,1522.2,10.05146284]
[1744331007671,6.56779,1522.6,1522.2,16.62069284]
[1744331007871,6.5683,1522.5,1522.3,1.66206928]
[1744331008096,6.5683,1522.5,1522.2,3.48233284]
[1744331008709,7.33762,1522.7,1522.3,6.56875]
[1744331008876,13.90519,1522.7,1522.4,3.0]
[1744331009076,6.56773,1522.6,1522.4,3.0]
[1744331009906,6.56742,1522.7,1522.4,3.0]
[1744331010208,6.56742,1522.7,1522.4,4.613755]
[1744331010418,12.72687,1522.8,1522.4,11.182275]
[1744331010419,19.29397,1522.8,1522.4,11.182275]
[1744331010574,6.56731,1522.7,1522.4,11.182275]
[1744331010774,12.72687,1522.8,1522.4,17.750715]
[1744331010978,0.711555,1523.0,1522.7,3.0]
[1744331010979,13.13226,1523.0,1522.7,3.0]
[1744331011380,6.56605,1523.0,1522.7,3.0]
[1744331011613,7.33578,1523.1,1522.5,3.0]
[1744331011795,6.56707,1522.8,1522.5,3.0]